[Event "Titled Tuesday Blitz February 22 Early 2022"]
[White "Carlsson, Ludvig"]
[Black "Nakamura, Hikaru"]
[WhiteFideId "1727010"]
[BlackFideId "2016192"]
[WhiteElo "2178"]
[BlackElo "2850"]
[Result "0-1"]
[Round "01"]
[TimeControl "180+1"]
[Date "2022.02.22"]
[WhiteClock "0:00:01"]
[BlackClock "0:00:14"]

1. d4 {[%clk 0:03:00]}  g6 {[%clk 0:02:59]} 2. e4 {[%clk 0:03:00]}  Bg7 {[%clk 0:02:59]} 3. Nf3 {[%clk 0:03:01]}  a6 {[%clk 0:02:59]} 4. c3 {[%clk 0:02:58]}  d6 {[%clk 0:02:58]} 5. Bd3 {[%clk 0:02:58]}  Nd7 {[%clk 0:02:58]} 6. O-O {[%clk 0:02:58]}  e5 {[%clk 0:02:59]} 7. Re1 {[%clk 0:02:59]}  Ngf6 {[%clk 0:02:59]} 8. Nbd2 {[%clk 0:02:59]}  O-O {[%clk 0:02:59]} 9. a4 {[%clk 0:02:59]}  Re8 {[%clk 0:02:59]} 10. dxe5 {[%clk 0:02:58]}  dxe5 {[%clk 0:02:59]} 11. Nc4 {[%clk 0:02:58]}  b6 {[%clk 0:02:59]} 12. Qc2 {[%clk 0:02:57]}  Bb7 {[%clk 0:02:59]} 13. Bg5 {[%clk 0:02:58]}  Nc5 {[%clk 0:02:48]} 14. Rad1 {[%clk 0:02:47]}  Nxd3 {[%clk 0:02:47]} 15. Rxd3 {[%clk 0:02:46]}  Qc8 {[%clk 0:02:47]} 16. Nfd2 {[%clk 0:02:41]}  Nd7 {[%clk 0:02:36]} 17. b4 {[%clk 0:02:38]}  a5 {[%clk 0:02:35]} 18. f3 {[%clk 0:02:33]}  Bf8 {[%clk 0:02:29]} 19. Rb1 {[%clk 0:02:10]}  Ba6 {[%clk 0:02:22]} 20. b5 {[%clk 0:01:59]}  Bb7 {[%clk 0:02:22]} 21. Nb3 {[%clk 0:01:58]}  Nc5 {[%clk 0:02:16]} 22. Nxc5 {[%clk 0:01:57]}  Bxc5+ {[%clk 0:02:17]} 23. Be3 {[%clk 0:01:57]}  Bf8 {[%clk 0:02:16]} 24. Rbd1 {[%clk 0:01:53]}  Qe6 {[%clk 0:02:16]} 25. Nb2 {[%clk 0:01:32]}  Rac8 {[%clk 0:02:10]} 26. c4 {[%clk 0:01:31]}  c6 {[%clk 0:02:10]} 27. Qf2 {[%clk 0:01:25]}  cxb5 {[%clk 0:01:25]} 28. axb5 {[%clk 0:01:20]}  a4 {[%clk 0:01:20]} 29. Nxa4 {[%clk 0:01:16]}  Rxc4 {[%clk 0:01:20]} 30. Nxb6 {[%clk 0:01:15]}  Rb4 {[%clk 0:01:21]} 31. Nd5 {[%clk 0:01:08]}  Bxd5 {[%clk 0:01:15]} 32. Rxd5 {[%clk 0:01:07]}  f5 {[%clk 0:01:16]} 33. exf5 {[%clk 0:01:00]}  gxf5 {[%clk 0:01:13]} 34. b6 {[%clk 0:00:51]}  f4 {[%clk 0:01:00]} 35. Bc5 {[%clk 0:00:51]}  Rb5 {[%clk 0:01:00]} 36. b7 {[%clk 0:00:09]}  Rxb7 {[%clk 0:00:37]} 37. Bxf8 {[%clk 0:00:08]}  Rxf8 {[%clk 0:00:38]} 38. Rd6 {[%clk 0:00:08]}  Qc4 {[%clk 0:00:37]} 39. R6d2 {[%clk 0:00:08]}  Rg7 {[%clk 0:00:34]} 40. Qe2 {[%clk 0:00:08]}  Qe6 {[%clk 0:00:32]} 41. Rd6 {[%clk 0:00:08]}  Qf5 {[%clk 0:00:32]} 42. Qc4+ {[%clk 0:00:07]}  Kh8 {[%clk 0:00:33]} 43. Qe2 {[%clk 0:00:08]}  Qg5 {[%clk 0:00:31]} 44. Kh1 {[%clk 0:00:08]}  Re8 {[%clk 0:00:30]} 45. R1d2 {[%clk 0:00:08]}  h5 {[%clk 0:00:28]} 46. R6d5 {[%clk 0:00:08]}  h4 {[%clk 0:00:27]} 47. h3 {[%clk 0:00:08]}  Qf5 {[%clk 0:00:28]} 48. Qf2 {[%clk 0:00:08]}  Rg3 {[%clk 0:00:28]} 49. Kh2 {[%clk 0:00:08]}  Reg8 {[%clk 0:00:27]} 50. Qf1 {[%clk 0:00:08]}  Qg5 {[%clk 0:00:22]} 51. Re2 {[%clk 0:00:07]}  Re8 {[%clk 0:00:22]} 52. Qa1 {[%clk 0:00:04]}  Kh7 {[%clk 0:00:20]} 53. Rdxe5 {[%clk 0:00:04]}  Rxe5 {[%clk 0:00:18]} 54. Qa7+ {[%clk 0:00:01]}  Kg6 {[%clk 0:00:14]} 0-1


[Site "https://www.chess.com"]

[Event "Titled Tuesday Blitz February 22 Early 2022"]
[White "Chernomordik, Pavel"]
[Black "Durarbayli, Vasif"]
[WhiteFideId "2804530"]
[BlackFideId "13402935"]
[WhiteElo "2249"]
[BlackElo "2528"]
[Result "0-1"]
[Round "01"]
[TimeControl "180+1"]
[Date "2022.02.22"]
[WhiteClock "0:00:10"]
[BlackClock "0:00:12"]

1. e4 {[%clk 0:03:00]}  c5 {[%clk 0:02:56]} 2. Nc3 {[%clk 0:03:00]}  e6 {[%clk 0:02:56]} 3. f4 {[%clk 0:02:57]}  a6 {[%clk 0:02:55]} 4. g3 {[%clk 0:02:56]}  d5 {[%clk 0:02:55]} 5. d3 {[%clk 0:02:50]}  d4 {[%clk 0:02:47]} 6. Nce2 {[%clk 0:02:47]}  Nc6 {[%clk 0:02:47]} 7. Bg2 {[%clk 0:02:47]}  Bd6 {[%clk 0:02:47]} 8. Nf3 {[%clk 0:02:46]}  Nge7 {[%clk 0:02:48]} 9. O-O {[%clk 0:02:44]}  b6 {[%clk 0:02:35]} 10. c4 {[%clk 0:02:38]}  dxc3 {[%clk 0:02:33]} 11. bxc3 {[%clk 0:02:34]}  Bb7 {[%clk 0:02:32]} 12. Be3 {[%clk 0:02:32]}  Bc7 {[%clk 0:02:26]} 13. Qc2 {[%clk 0:02:28]}  O-O {[%clk 0:02:18]} 14. Rad1 {[%clk 0:02:25]}  Qd7 {[%clk 0:01:57]} 15. Bh3 {[%clk 0:02:20]}  Rad8 {[%clk 0:01:55]} 16. g4 {[%clk 0:02:09]}  f5 {[%clk 0:01:47]} 17. gxf5 {[%clk 0:02:04]}  exf5 {[%clk 0:01:48]} 18. Qb3+ {[%clk 0:02:02]}  Kh8 {[%clk 0:01:47]} 19. Ng5 {[%clk 0:02:01]}  Ng6 {[%clk 0:01:30]} 20. Ng3 {[%clk 0:01:52]}  Nh4 {[%clk 0:01:24]} 21. Ne6 {[%clk 0:01:41]}  Na5 {[%clk 0:01:09]} 22. Nxf8 {[%clk 0:01:39]}  Rxf8 {[%clk 0:01:10]} 23. Qc2 {[%clk 0:01:32]}  Qc6 {[%clk 0:01:08]} 24. Qf2 {[%clk 0:01:23]}  c4 {[%clk 0:01:05]} 25. Bd4 {[%clk 0:01:17]}  cxd3 {[%clk 0:00:52]} 26. Nh5 {[%clk 0:01:16]}  Qxe4 {[%clk 0:00:44]} 27. Bg2 {[%clk 0:00:45]}  Qxg2+ {[%clk 0:00:32]} 28. Qxg2 {[%clk 0:00:44]}  Bxg2 {[%clk 0:00:33]} 29. Bxg7+ {[%clk 0:00:39]}  Kg8 {[%clk 0:00:33]} 30. Bxf8 {[%clk 0:00:39]}  Bxf1 {[%clk 0:00:33]} 31. Kxf1 {[%clk 0:00:34]}  Kxf8 {[%clk 0:00:33]} 32. Rxd3 {[%clk 0:00:34]}  Ke7 {[%clk 0:00:33]} 33. Rh3 {[%clk 0:00:28]}  Ng6 {[%clk 0:00:33]} 34. Ng3 {[%clk 0:00:26]}  Ke6 {[%clk 0:00:29]} 35. Rxh7 {[%clk 0:00:26]}  Bxf4 {[%clk 0:00:29]} 36. Ra7 {[%clk 0:00:23]}  Nc4 {[%clk 0:00:26]} 37. Rxa6 {[%clk 0:00:23]}  Be5 {[%clk 0:00:25]} 38. Ke2 {[%clk 0:00:19]}  Nf4+ {[%clk 0:00:24]} 39. Kf3 {[%clk 0:00:19]}  Nd5 {[%clk 0:00:24]} 40. h4 {[%clk 0:00:18]}  Bxc3 {[%clk 0:00:22]} 41. h5 {[%clk 0:00:18]}  Ne5+ {[%clk 0:00:23]} 42. Kg2 {[%clk 0:00:18]}  f4 {[%clk 0:00:21]} 43. Ne4 {[%clk 0:00:18]}  f3+ {[%clk 0:00:21]} 44. Kf1 {[%clk 0:00:16]}  Bd4 {[%clk 0:00:20]} 45. h6 {[%clk 0:00:15]}  Ng4 {[%clk 0:00:16]} 46. h7 {[%clk 0:00:13]}  Kf5 {[%clk 0:00:17]} 47. Ng3+ {[%clk 0:00:12]}  Kg6 {[%clk 0:00:14]} 48. Ra7 {[%clk 0:00:11]}  Nde3+ {[%clk 0:00:12]} 49. Ke1 {[%clk 0:00:10]}  Bc3# {[%clk 0:00:12]} 0-1


[Site "https://www.chess.com"]

[Event "Titled Tuesday Blitz February 22 Early 2022"]
[White "Chincholimath, Halsagar"]
[Black "Kovanova, Baira"]
[WhiteFideId "5022487"]
[BlackFideId "4164083"]
[WhiteElo "1737"]
[BlackElo "2190"]
[Result "0-1"]
[Round "01"]
[TimeControl "180+1"]
[Date "2022.02.22"]
[WhiteClock "0:00:10"]
[BlackClock "0:00:40"]

1. e4 {[%clk 0:03:00]}  e5 {[%clk 0:02:59]} 2. Nf3 {[%clk 0:03:00]}  Nc6 {[%clk 0:02:57]} 3. Nc3 {[%clk 0:03:00]}  Nf6 {[%clk 0:02:49]} 4. d4 {[%clk 0:03:00]}  exd4 {[%clk 0:02:49]} 5. Nxd4 {[%clk 0:03:01]}  Bc5 {[%clk 0:02:45]} 6. Nxc6 {[%clk 0:02:59]}  bxc6 {[%clk 0:02:42]} 7. Bd3 {[%clk 0:02:59]}  d6 {[%clk 0:02:38]} 8. O-O {[%clk 0:02:58]}  O-O {[%clk 0:02:35]} 9. Bg5 {[%clk 0:02:57]}  h6 {[%clk 0:02:35]} 10. Bh4 {[%clk 0:02:57]}  Re8 {[%clk 0:02:33]} 11. Kh1 {[%clk 0:02:54]}  a5 {[%clk 0:02:25]} 12. f4 {[%clk 0:02:53]}  Qe7 {[%clk 0:02:12]} 13. e5 {[%clk 0:02:27]}  dxe5 {[%clk 0:02:12]} 14. fxe5 {[%clk 0:02:27]}  Qxe5 {[%clk 0:02:12]} 15. Bxf6 {[%clk 0:02:07]}  gxf6 {[%clk 0:02:12]} 16. Ne4 {[%clk 0:02:03]}  Be7 {[%clk 0:02:03]} 17. Qf3 {[%clk 0:01:47]}  Be6 {[%clk 0:01:59]} 18. Rae1 {[%clk 0:01:32]}  Bd5 {[%clk 0:01:56]} 19. Qg4+ {[%clk 0:01:30]}  Kh8 {[%clk 0:01:52]} 20. Nxf6 {[%clk 0:01:22]}  Qxe1 {[%clk 0:01:34]} 21. Rxe1 {[%clk 0:01:20]}  Bxf6 {[%clk 0:01:34]} 22. Rxe8+ {[%clk 0:01:17]}  Rxe8 {[%clk 0:01:33]} 23. Kg1 {[%clk 0:00:28]}  Rg8 {[%clk 0:01:28]} 24. Qf5 {[%clk 0:00:26]}  Rg6 {[%clk 0:00:48]} 25. g3 {[%clk 0:00:24]}  Kg7 {[%clk 0:00:47]} 26. c3 {[%clk 0:00:22]}  Bg5 {[%clk 0:00:40]} 27. Kf2 {[%clk 0:00:21]}  Rf6 {[%clk 0:00:40]} 28. h4 {[%clk 0:00:13]}  Rxf5+ {[%clk 0:00:40]} 29. Bxf5 {[%clk 0:00:11]}  Bf6 {[%clk 0:00:40]} 30. Ke3 {[%clk 0:00:10]}  Bxa2 {[%clk 0:00:40]} 0-1


[Site "https://www.chess.com"]

[Event "Titled Tuesday Blitz February 22 Early 2022"]
[White "Colas, Joshua"]
[Black "Medeiros Jr, Francisco De Assis"]
[WhiteFideId "2044447"]
[BlackFideId "2114267"]
[WhiteElo "2347"]
[BlackElo "1998"]
[Result "1-0"]
[Round "01"]
[TimeControl "180+1"]
[Date "2022.02.22"]
[WhiteClock "0:00:06"]
[BlackClock "0:00:02"]

1. Nf3 {[%clk 0:02:55]}  d5 {[%clk 0:02:59]} 2. d4 {[%clk 0:02:55]}  e6 {[%clk 0:02:56]} 3. g3 {[%clk 0:02:55]}  Nf6 {[%clk 0:02:51]} 4. Bg2 {[%clk 0:02:55]}  a6 {[%clk 0:02:46]} 5. O-O {[%clk 0:02:53]}  g6 {[%clk 0:02:37]} 6. c4 {[%clk 0:02:51]}  c6 {[%clk 0:02:35]} 7. c5 {[%clk 0:02:42]}  Bg7 {[%clk 0:02:34]} 8. Nc3 {[%clk 0:02:42]}  O-O {[%clk 0:02:34]} 9. Bg5 {[%clk 0:02:39]}  Nbd7 {[%clk 0:02:27]} 10. Qd2 {[%clk 0:02:34]}  Qc7 {[%clk 0:02:18]} 11. Bf4 {[%clk 0:02:29]}  Qd8 {[%clk 0:02:10]} 12. Bd6 {[%clk 0:02:24]}  Re8 {[%clk 0:02:09]} 13. b4 {[%clk 0:02:24]}  Bf8 {[%clk 0:01:58]} 14. Bf4 {[%clk 0:02:22]}  Nh5 {[%clk 0:01:51]} 15. Be3 {[%clk 0:02:06]}  Bg7 {[%clk 0:01:43]} 16. a4 {[%clk 0:01:48]}  e5 {[%clk 0:01:43]} 17. dxe5 {[%clk 0:01:38]}  Nxe5 {[%clk 0:01:44]} 18. Nxe5 {[%clk 0:01:38]}  Bxe5 {[%clk 0:01:42]} 19. Bd4 {[%clk 0:01:39]}  Qf6 {[%clk 0:01:28]} 20. e3 {[%clk 0:01:33]}  Ng7 {[%clk 0:01:13]} 21. b5 {[%clk 0:01:23]}  axb5 {[%clk 0:01:04]} 22. axb5 {[%clk 0:01:24]}  Bd7 {[%clk 0:01:05]} 23. b6 {[%clk 0:00:51]}  Bxd4 {[%clk 0:00:54]} 24. Qxd4 {[%clk 0:00:33]}  Qxd4 {[%clk 0:00:53]} 25. exd4 {[%clk 0:00:34]}  Rxa1 {[%clk 0:00:47]} 26. Rxa1 {[%clk 0:00:34]}  Nf5 {[%clk 0:00:42]} 27. Rd1 {[%clk 0:00:23]}  Ra8 {[%clk 0:00:35]} 28. Bh3 {[%clk 0:00:23]}  Ra3 {[%clk 0:00:28]} 29. Nb1 {[%clk 0:00:21]}  Ra4 {[%clk 0:00:25]} 30. Nc3 {[%clk 0:00:17]}  Ra3 {[%clk 0:00:24]} 31. Ne2 {[%clk 0:00:17]}  Be6 {[%clk 0:00:12]} 32. Nf4 {[%clk 0:00:16]}  Ra4 {[%clk 0:00:09]} 33. Bxf5 {[%clk 0:00:16]}  Bxf5 {[%clk 0:00:08]} 34. h3 {[%clk 0:00:12]}  h5 {[%clk 0:00:08]} 35. h4 {[%clk 0:00:13]}  Kf8 {[%clk 0:00:08]} 36. Kg2 {[%clk 0:00:13]}  Ke7 {[%clk 0:00:09]} 37. Re1+ {[%clk 0:00:13]}  Kd7 {[%clk 0:00:08]} 38. Rd1 {[%clk 0:00:14]}  Ra3 {[%clk 0:00:08]} 39. Rd2 {[%clk 0:00:14]}  Be4+ {[%clk 0:00:08]} 40. Kf1 {[%clk 0:00:14]}  Ra1+ {[%clk 0:00:08]} 41. Ke2 {[%clk 0:00:14]}  Ra3 {[%clk 0:00:08]} 42. Rb2 {[%clk 0:00:13]}  Bf3+ {[%clk 0:00:09]} 43. Kd2 {[%clk 0:00:13]}  Ra4 {[%clk 0:00:05]} 44. Kc3 {[%clk 0:00:13]}  Be4 {[%clk 0:00:06]} 45. Ne2 {[%clk 0:00:09]}  Rc4+ {[%clk 0:00:06]} 46. Kd2 {[%clk 0:00:09]}  Ra4 {[%clk 0:00:06]} 47. Rb3 {[%clk 0:00:07]}  Ra2+ {[%clk 0:00:07]} 48. Ke3 {[%clk 0:00:08]}  Ra4 {[%clk 0:00:05]} 49. Nc3 {[%clk 0:00:08]}  Ra1 {[%clk 0:00:03]} 50. Rb2 {[%clk 0:00:05]}  Re1+ {[%clk 0:00:02]} 51. Re2 {[%clk 0:00:06]}  Rxe2+ {[%clk 0:00:02]} 52. Nxe2 {[%clk 0:00:06]}  Ke6 {[%clk 0:00:03]} 53. Kf4 {[%clk 0:00:06]}  Bd3 {[%clk 0:00:03]} 54. Nc3 {[%clk 0:00:06]}  f6 {[%clk 0:00:03]} 55. Na2 {[%clk 0:00:05]}  Bb5 {[%clk 0:00:02]} 56. Nb4 {[%clk 0:00:06]} 1-0


[Site "https://www.chess.com"]

[Event "Titled Tuesday Blitz February 22 Early 2022"]
[White "Dauner, Benedikt"]
[Black "Boros, Denes"]
[WhiteFideId "16225899"]
[BlackFideId "722340"]
[WhiteElo "2230"]
[BlackElo "2464"]
[Result "1/2-1/2"]
[Round "01"]
[TimeControl "180+1"]
[Date "2022.02.22"]
[WhiteClock "0:00:04"]
[BlackClock "0:00:16"]

1. d4 {[%clk 0:02:58]}  Nc6 {[%clk 0:02:59]} 2. e4 {[%clk 0:02:55]}  g6 {[%clk 0:02:59]} 3. d5 {[%clk 0:02:52]}  Nb8 {[%clk 0:02:57]} 4. h4 {[%clk 0:02:44]}  d6 {[%clk 0:02:55]} 5. h5 {[%clk 0:02:43]}  Bg7 {[%clk 0:02:54]} 6. Nc3 {[%clk 0:02:38]}  c6 {[%clk 0:02:54]} 7. Be2 {[%clk 0:02:28]}  Nd7 {[%clk 0:02:47]} 8. h6 {[%clk 0:02:15]}  Bxc3+ {[%clk 0:02:46]} 9. bxc3 {[%clk 0:02:13]}  Ngf6 {[%clk 0:02:46]} 10. Bf3 {[%clk 0:01:57]}  Qa5 {[%clk 0:02:38]} 11. Bd2 {[%clk 0:01:56]}  Ne5 {[%clk 0:02:38]} 12. dxc6 {[%clk 0:01:33]}  bxc6 {[%clk 0:02:39]} 13. Be2 {[%clk 0:01:26]}  Nxe4 {[%clk 0:02:35]} 14. Nf3 {[%clk 0:01:24]}  Nxc3 {[%clk 0:02:16]} 15. Qc1 {[%clk 0:01:20]}  Nxf3+ {[%clk 0:02:06]} 16. Bxf3 {[%clk 0:01:17]}  Ba6 {[%clk 0:02:01]} 17. Bxc6+ {[%clk 0:00:49]}  Kd8 {[%clk 0:01:56]} 18. Bxa8 {[%clk 0:00:49]}  Kc7 {[%clk 0:01:02]} 19. Rh3 {[%clk 0:00:44]}  Qe5+ {[%clk 0:00:51]} 20. Re3 {[%clk 0:00:43]}  Qh2 {[%clk 0:00:51]} 21. Rxc3+ {[%clk 0:00:37]}  Kb8 {[%clk 0:00:52]} 22. Be3 {[%clk 0:00:27]}  Kxa8 {[%clk 0:00:50]} 23. Kd2 {[%clk 0:00:26]}  Qxg2 {[%clk 0:00:50]} 24. Rb1 {[%clk 0:00:26]}  Qd5+ {[%clk 0:00:48]} 25. Ke1 {[%clk 0:00:20]}  Qh1+ {[%clk 0:00:47]} 26. Kd2 {[%clk 0:00:20]}  Qd5+ {[%clk 0:00:44]} 27. Rd3 {[%clk 0:00:21]}  Bxd3 {[%clk 0:00:42]} 28. cxd3 {[%clk 0:00:22]}  Qxa2+ {[%clk 0:00:40]} 29. Qc2 {[%clk 0:00:21]}  Qxc2+ {[%clk 0:00:38]} 30. Kxc2 {[%clk 0:00:22]}  Rc8+ {[%clk 0:00:37]} 31. Kd2 {[%clk 0:00:22]}  Rc6 {[%clk 0:00:34]} 32. Ra1 {[%clk 0:00:21]}  a6 {[%clk 0:00:34]} 33. Ra5 {[%clk 0:00:21]}  Kb7 {[%clk 0:00:34]} 34. Ra2 {[%clk 0:00:18]}  Kc8 {[%clk 0:00:31]} 35. Rb2 {[%clk 0:00:18]}  a5 {[%clk 0:00:25]} 36. Ra2 {[%clk 0:00:17]}  Ra6 {[%clk 0:00:25]} 37. Kc3 {[%clk 0:00:16]}  Kd7 {[%clk 0:00:22]} 38. Kb3 {[%clk 0:00:16]}  Kc6 {[%clk 0:00:21]} 39. Ka4 {[%clk 0:00:17]}  Ra8 {[%clk 0:00:20]} 40. Bd2 {[%clk 0:00:17]}  Kd5 {[%clk 0:00:20]} 41. Be3 {[%clk 0:00:13]}  e5 {[%clk 0:00:18]} 42. Rb2 {[%clk 0:00:13]}  Ke6 {[%clk 0:00:17]} 43. Rb7 {[%clk 0:00:12]}  d5 {[%clk 0:00:17]} 44. Bb6 {[%clk 0:00:11]}  e4 {[%clk 0:00:14]} 45. dxe4 {[%clk 0:00:10]}  dxe4 {[%clk 0:00:15]} 46. Bxa5 {[%clk 0:00:08]}  Rc8 {[%clk 0:00:14]} 47. Kb5 {[%clk 0:00:09]}  Rc2 {[%clk 0:00:14]} 48. Bb6 {[%clk 0:00:09]}  g5 {[%clk 0:00:13]} 49. Be3 {[%clk 0:00:09]}  g4 {[%clk 0:00:12]} 50. Rb6+ {[%clk 0:00:08]}  Kf5 {[%clk 0:00:12]} 51. Rb7 {[%clk 0:00:09]}  Kg6 {[%clk 0:00:12]} 52. Re7 {[%clk 0:00:07]}  f5 {[%clk 0:00:08]} 53. Rg7+ {[%clk 0:00:06]}  Kf6 {[%clk 0:00:09]} 54. Rxh7 {[%clk 0:00:06]}  f4 {[%clk 0:00:09]} 55. Bxf4 {[%clk 0:00:06]}  Rxf2 {[%clk 0:00:10]} 56. Be3 {[%clk 0:00:05]}  Re2 {[%clk 0:00:10]} 57. Bd4+ {[%clk 0:00:05]}  Kg6 {[%clk 0:00:10]} 58. Rh8 {[%clk 0:00:05]}  g3 {[%clk 0:00:10]} 59. h7 {[%clk 0:00:05]}  Rh2 {[%clk 0:00:08]} 60. Rg8+ {[%clk 0:00:03]}  Kxh7 {[%clk 0:00:09]} 61. Rxg3 {[%clk 0:00:04]}  Rh4 {[%clk 0:00:09]} 62. Re3 {[%clk 0:00:04]}  Kg6 {[%clk 0:00:09]} 63. Kc4 {[%clk 0:00:05]}  Kf5 {[%clk 0:00:10]} 64. Kd5 {[%clk 0:00:05]}  Rg4 {[%clk 0:00:11]} 65. Bc5 {[%clk 0:00:05]}  Rf4 {[%clk 0:00:11]} 66. Bd4 {[%clk 0:00:05]}  Rg4 {[%clk 0:00:11]} 67. Bc5 {[%clk 0:00:06]}  Rf4 {[%clk 0:00:12]} 68. Bd6 {[%clk 0:00:06]}  Rh4 {[%clk 0:00:13]} 69. Re1 {[%clk 0:00:05]}  Rg4 {[%clk 0:00:13]} 70. Be5 {[%clk 0:00:04]}  Rh4 {[%clk 0:00:12]} 71. Rf1+ {[%clk 0:00:05]}  Kg6 {[%clk 0:00:13]} 72. Kd4 {[%clk 0:00:04]}  Rg4 {[%clk 0:00:13]} 73. Bf4 {[%clk 0:00:04]}  Kf5 {[%clk 0:00:12]} 74. Be3+ {[%clk 0:00:04]}  Ke6 {[%clk 0:00:13]} 75. Bf4 {[%clk 0:00:03]}  Kf5 {[%clk 0:00:13]} 76. Ke3 {[%clk 0:00:03]}  Kg6 {[%clk 0:00:14]} 77. Kxe4 {[%clk 0:00:03]}  Rg2 {[%clk 0:00:14]} 78. Rh1 {[%clk 0:00:03]}  Rg4 {[%clk 0:00:15]} 79. Rh6+ {[%clk 0:00:03]}  Kg7 {[%clk 0:00:15]} 80. Kf5 {[%clk 0:00:03]}  Rxf4+ {[%clk 0:00:15]} 81. Kxf4 {[%clk 0:00:04]}  Kxh6 {[%clk 0:00:16]} 1/2-1/2


[Site "https://www.chess.com"]

[Event "Titled Tuesday Blitz February 22 Early 2022"]
[White "De Souza, Cristiano Gomes"]
[Black "Fecker, Noah"]
[WhiteFideId "2151758"]
[BlackFideId "1334263"]
[WhiteElo "2068"]
[BlackElo "2312"]
[Result "0-1"]
[Round "01"]
[TimeControl "180+1"]
[Date "2022.02.22"]
[WhiteClock "0:01:27"]
[BlackClock "0:02:16"]

1. d4 {[%clk 0:02:56]}  d5 {[%clk 0:02:52]} 2. c4 {[%clk 0:02:55]}  e6 {[%clk 0:02:51]} 3. Nf3 {[%clk 0:02:55]}  a6 {[%clk 0:02:52]} 4. Nc3 {[%clk 0:02:53]}  dxc4 {[%clk 0:02:52]} 5. a4 {[%clk 0:02:52]}  Nc6 {[%clk 0:02:52]} 6. e3 {[%clk 0:02:50]}  Na5 {[%clk 0:02:52]} 7. Nd2 {[%clk 0:02:48]}  c5 {[%clk 0:02:48]} 8. Nxc4 {[%clk 0:02:47]}  Nf6 {[%clk 0:02:43]} 9. Be2 {[%clk 0:02:42]}  cxd4 {[%clk 0:02:43]} 10. Nxa5 {[%clk 0:02:35]}  Qxa5 {[%clk 0:02:42]} 11. Qxd4 {[%clk 0:02:32]}  e5 {[%clk 0:02:42]} 12. Qh4 {[%clk 0:02:26]}  Be7 {[%clk 0:02:42]} 13. Bd2 {[%clk 0:02:20]}  Qb6 {[%clk 0:02:38]} 14. Bc1 {[%clk 0:01:58]}  Bf5 {[%clk 0:02:37]} 15. O-O {[%clk 0:01:57]}  O-O {[%clk 0:02:29]} 16. a5 {[%clk 0:01:53]}  Qe6 {[%clk 0:02:25]} 17. Bc4 {[%clk 0:01:50]}  Qc6 {[%clk 0:02:20]} 18. Rd1 {[%clk 0:01:32]}  Rfe8 {[%clk 0:02:18]} 19. Qg3 {[%clk 0:01:27]}  Qxc4 {[%clk 0:02:16]} 0-1


[Site "https://www.chess.com"]

[Event "Titled Tuesday Blitz February 22 Early 2022"]
[White "Dejmek, Mark"]
[Black "Postnikov, Daniil"]
[WhiteFideId "2017628"]
[BlackFideId "4166329"]
[WhiteElo "2213"]
[BlackElo "2261"]
[Result "0-1"]
[Round "01"]
[TimeControl "180+1"]
[Date "2022.02.22"]
[WhiteClock "0:00:03"]
[BlackClock "0:00:06"]

1. Nf3 {[%clk 0:02:59]}  c5 {[%clk 0:02:21]} 2. b3 {[%clk 0:02:56]}  Nc6 {[%clk 0:02:20]} 3. Bb2 {[%clk 0:02:56]}  d6 {[%clk 0:02:19]} 4. e4 {[%clk 0:02:53]}  e5 {[%clk 0:02:18]} 5. Bb5 {[%clk 0:02:51]}  Ne7 {[%clk 0:02:16]} 6. O-O {[%clk 0:02:39]}  g6 {[%clk 0:02:15]} 7. d3 {[%clk 0:02:36]}  Bg7 {[%clk 0:02:14]} 8. a4 {[%clk 0:02:35]}  O-O {[%clk 0:02:13]} 9. Na3 {[%clk 0:02:32]}  Nd4 {[%clk 0:02:10]} 10. c3 {[%clk 0:02:25]}  Nxb5 {[%clk 0:02:03]} 11. axb5 {[%clk 0:02:22]}  f5 {[%clk 0:02:02]} 12. Nc4 {[%clk 0:02:09]}  f4 {[%clk 0:02:01]} 13. d4 {[%clk 0:02:02]}  d5 {[%clk 0:01:28]} 14. exd5 {[%clk 0:01:50]}  e4 {[%clk 0:01:28]} 15. d6 {[%clk 0:01:37]}  Nf5 {[%clk 0:00:59]} 16. Nfe5 {[%clk 0:01:31]}  Nxd6 {[%clk 0:00:48]} 17. dxc5 {[%clk 0:01:25]}  Nxb5 {[%clk 0:00:46]} 18. Qxd8 {[%clk 0:01:08]}  Rxd8 {[%clk 0:00:47]} 19. Rfe1 {[%clk 0:01:08]}  Bf5 {[%clk 0:00:43]} 20. g4 {[%clk 0:00:40]}  fxg3 {[%clk 0:00:31]} 21. hxg3 {[%clk 0:00:37]}  h5 {[%clk 0:00:25]} 22. Rad1 {[%clk 0:00:27]}  a6 {[%clk 0:00:13]} 23. c6 {[%clk 0:00:27]}  bxc6 {[%clk 0:00:12]} 24. Nxc6 {[%clk 0:00:27]}  Rxd1 {[%clk 0:00:12]} 25. Rxd1 {[%clk 0:00:27]}  Re8 {[%clk 0:00:12]} 26. Nd6 {[%clk 0:00:20]}  Nxd6 {[%clk 0:00:11]} 27. Rxd6 {[%clk 0:00:20]}  e3 {[%clk 0:00:12]} 28. fxe3 {[%clk 0:00:20]}  Rxe3 {[%clk 0:00:13]} 29. Kf2 {[%clk 0:00:15]}  Re8 {[%clk 0:00:07]} 30. Nd4 {[%clk 0:00:15]}  Be4 {[%clk 0:00:03]} 31. c4 {[%clk 0:00:13]}  Be5 {[%clk 0:00:03]} 32. Rd7 {[%clk 0:00:11]}  Rf8+ {[%clk 0:00:03]} 33. Ke3 {[%clk 0:00:09]}  Ba8 {[%clk 0:00:04]} 34. Re7 {[%clk 0:00:06]}  Bxg3 {[%clk 0:00:03]} 35. Ne6 {[%clk 0:00:05]}  Bf2+ {[%clk 0:00:03]} 36. Kd2 {[%clk 0:00:04]}  Rf7 {[%clk 0:00:04]} 37. Rxf7 {[%clk 0:00:04]}  Kxf7 {[%clk 0:00:05]} 38. Ng5+ {[%clk 0:00:04]}  Ke7 {[%clk 0:00:05]} 39. Ke2 {[%clk 0:00:03]}  Bg3 {[%clk 0:00:05]} 40. Nf3 {[%clk 0:00:02]}  Bxf3+ {[%clk 0:00:05]} 41. Kxf3 {[%clk 0:00:02]}  Bd6 {[%clk 0:00:06]} 42. Ke4 {[%clk 0:00:02]}  Ke6 {[%clk 0:00:06]} 43. Bc3 {[%clk 0:00:02]}  h4 {[%clk 0:00:06]} 44. b4 {[%clk 0:00:03]}  h3 {[%clk 0:00:06]} 45. Kf3 {[%clk 0:00:03]}  g5 {[%clk 0:00:05]} 46. b5 {[%clk 0:00:02]}  axb5 {[%clk 0:00:05]} 47. cxb5 {[%clk 0:00:03]}  Kf5 {[%clk 0:00:05]} 48. Be1 {[%clk 0:00:02]}  g4+ {[%clk 0:00:05]} 49. Kf2 {[%clk 0:00:02]}  g3+ {[%clk 0:00:05]} 50. Kg1 {[%clk 0:00:02]}  Bc5+ {[%clk 0:00:05]} 51. Kh1 {[%clk 0:00:02]}  g2+ {[%clk 0:00:05]} 52. Kh2 {[%clk 0:00:01]}  g1=Q+ {[%clk 0:00:06]} 53. Kxh3 {[%clk 0:00:02]}  Qxe1 {[%clk 0:00:06]} 54. Kg2 {[%clk 0:00:02]}  Qf2+ {[%clk 0:00:06]} 55. Kh3 {[%clk 0:00:02]}  Bd6 {[%clk 0:00:06]} 56. b6 {[%clk 0:00:03]}  Qg3# {[%clk 0:00:06]} 0-1


[Site "https://www.chess.com"]